bitfinex-derivatives/quotes_SOLF0:USTF0_20250808
["timestamp","ask_amount","ask_price","bid_price","bid_amount"]
[1754646236729,3.09,175.51,175.47,3.17]
[1754646237231,3.09,175.51,175.44,3.21786831]
[1754646237529,3.09,175.51,175.45,3.17]
[1754646237727,3.09,175.51,175.49,3.17]
[1754646237923,3.21786831,175.51,175.48,5.6974]
[1754646238131,3.09,175.5,175.48,8.8674]
[1754646238328,3.09,175.49,175.48,8.8674]
[1754646239435,3.09,175.49,175.47,5.6977]
[1754646239630,3.09,175.48,175.41,3.17]
[1754646239831,3.09,175.46,175.41,3.17]
[1754646240028,3.21786831,175.48,175.41,3.17]
[1754646240230,3.09,175.48,175.43,3.21786831]
[1754646240429,3.09,175.48,175.47,5.6979]
[1754646240727,3.09,175.48,175.47,8.8679]
[1754646242030,3.09,175.47,175.46,3.17]
[1754646242230,3.09,175.47,175.44,3.17]
[1754646242430,3.09,175.47,175.45,3.17]
[1754646242633,3.09,175.47,175.39,3.21786831]
[1754646242835,3.21786831,175.44,175.39,3.17]
[1754646243033,3.09,175.43,175.41,5.6996]
[1754646243235,3.21786831,175.44,175.37,3.21786831]
[1754646243236,3.09,175.44,175.38,3.17]
[1754646243740,3.09,175.44,175.43,5.6992]
[1754646243937,3.09,175.44,175.43,8.8692]
[1754646244230,8.91616831,175.46,175.42,5.6994]
[1754646244432,3.09,175.45,175.42,8.8694]
[1754646244635,3.09,175.45,175.37,3.21786831]
[1754646244834,3.09,175.44,175.43,3.17]
[1754646245237,3.09,175.44,175.43,8.869]
[1754646245632,3.21786831,175.46,175.45,5.6985]
[1754646245837,3.21786831,175.5,175.44,3.28]
[1754646246034,3.31,175.5,175.44,3.28]
[1754646246331,5.6967,175.51,175.43,3.21786831]
[1754646246533,3.31,175.5,175.49,3.28]
[1754646247138,3.31,175.5,175.49,8.9772]
[1754646247437,3.31,175.49,175.48,3.28]
[1754646247937,3.31,175.49,175.48,8.9776]
[1754646248137,3.31,175.51,175.48,3.28]
[1754646248328,3.31,175.5,175.49,5.697]
[1754646248528,113.35406831,175.53,175.5,3.28]
[1754646248732,3.31,175.51,175.5,3.28]
[1754646249133,9.0063,175.52,175.45,3.21786831]
[1754646249333,3.31,175.51,175.46,3.28]
[1754646249534,3.31,175.51,175.47,5.6977]
[1754646249735,3.31,175.51,175.45,3.21786831]
[1754646249939,3.31,175.5,175.49,3.28]
[1754646251433,3.31,175.51,175.49,3.28]
[1754646251641,3.31,175.53,175.49,6.49786831]
[1754646251937,487.68,175.56,175.5,3.28]
[1754646251938,3.31,175.55,175.5,3.28]
[1754646252236,3.31,175.54,175.51,3.28]
[1754646252435,3.31,175.54,175.53,3.28]
[1754646254735,110.1552,175.56,175.51,5.6965]
[1754646254941,3.31,175.53,175.52,3.28]
[1754646256345,3.31,175.53,175.52,8.9763]
[1754646258241,3.31,175.55,175.53,3.28]
[1754646258549,3.31,175.54,175.52,5.6963]
[1754646259047,3.31,175.54,175.53,3.28]
[1754646266753,3.31,175.54,175.53,8.9759]
[1754646267446,9.0051,175.56,175.53,8.9759]
[1754646267650,3.31,175.55,175.54,3.28]
[1754646269052,9.0053,175.55,175.54,3.28]
[1754646269257,3.31,175.54,175.5,3.28]
[1754646269745,5.6958,175.54,175.5,5.6969]
[1754646269949,3.31,175.52,175.5,5.6969]
[1754646270656,3.31,175.52,175.51,3.28]
[1754646277258,5.6963,175.52,175.5,5.6969]
[1754646277464,3.25,175.51,175.49,3.31]
[1754646277963,5.6963,175.52,175.48,3.21786831]
[1754646278164,3.25,175.51,175.49,3.31]
[1754646278662,3.25,175.53,175.5,3.31]
[1754646278959,3.25,175.55,175.53,3.31]
[1754646279158,104.44,175.57,175.54,3.21786831]
[1754646279367,3.25,175.56,175.54,3.31]
[1754646279560,3.25,175.55,175.52,3.21786831]
[1754646279864,3.25,175.55,175.54,5.6956]
[1754646280064,3.25,175.55,175.54,9.0056]
[1754646280459,3.25,175.55,175.54,3.31]
[1754646280963,3.25,175.55,175.54,9.0056]
[1754646281962,3.25,175.56,175.55,5.6952]
[1754646282267,3.25,175.57,175.56,3.31]
[1754646282664,3.25,175.57,175.56,9.005]
[1754646282959,3.25,175.58,175.57,3.31]
[1754646283560,3.25,175.58,175.57,9.0046]
[1754646285367,3.25,175.58,175.57,3.31]
[1754646286963,3.25,175.58,175.57,9.0046]
[1754646288069,3.25,175.58,175.56,9.0048]
[1754646288965,3.25,175.58,175.55,3.31]
[1754646289172,3.25,175.6,175.54,6.52786831]
[1754646289566,3.25,175.6,175.54,12.22336831]
[1754646289875,3.25,175.6,175.54,9.0055]
[1754646290567,3.25,175.6,175.55,5.6952]
[1754646290767,3.25,175.6,175.55,9.0052]
[1754646291375,3.25,175.6,175.56,3.31]
[1754646291873,5.6945,175.58,175.56,3.31]
[1754646292068,3.25,175.57,175.56,3.31]
[1754646292869,5.6946,175.57,175.54,5.6955]
[1754646293072,3.25,175.56,175.55,3.31]
[1754646295077,3.25,175.56,175.55,9.0053]
[1754646295277,3.25,175.6,175.55,3.31]
[1754646295475,3.25,175.59,175.55,3.31]
[1754646295678,3.25,175.61,175.58,3.31]
[1754646295978,5.6937,175.6,175.57,5.6944]
[1754646296180,8.9437,175.6,175.59,3.31]
[1754646296374,3.25,175.6,175.59,3.31]
[1754646296775,3.25,175.6,175.58,3.31]
[1754646298983,3.25,175.59,175.58,3.31]
[1754646301684,3.25,175.61,175.58,3.31]
[1754646302187,3.25,175.59,175.57,5.6946]
[1754646302386,3.25,175.58,175.55,3.21786831]
[1754646302680,3.25,175.59,175.55,3.21786831]
[1754646302984,3.25,175.58,175.56,3.35383385]
[1754646303581,3.25,175.58,175.57,3.31]
[1754646304280,8.9441,175.59,175.57,3.31]
[1754646304882,5.6941,175.59,175.57,3.31]
[1754646305088,3.25,175.58,175.57,3.31]
[1754646305785,8.9441,175.59,175.57,3.31]
[1754646306990,5.6941,175.59,175.57,3.31]
[1754646307190,3.31,175.58,175.57,3.31]
[1754646307788,9.0043,175.58,175.57,3.31]
[1754646308788,0.03595488,175.6,175.57,3.31]
[1754646309088,0.03595488,175.6,175.59,12.03186831]
[1754646312695,3.34595488,175.6,175.59,12.03186831]
[1754646312894,3.34595488,175.6,175.56,0.04383385]
[1754646313089,3.31,175.58,175.56,0.04383385]
[1754646313492,3.31,175.59,175.56,0.04383385]
[1754646314095,9.0046,175.57,175.56,0.04383385]
[1754646315800,0.03595488,175.6,175.56,3.26170216]
[1754646315999,0.03595488,175.6,175.59,3.12]
[1754646316199,5.72985488,175.6,175.59,3.12]
[1754646316700,3.34595488,175.6,175.59,3.12]
[1754646318705,0.03595488,175.6,175.59,8.814]
[1754646319605,3.34595488,175.6,175.59,8.814]
[1754646321002,3.34595488,175.6,175.58,5.6943]
[1754646321204,3.34595488,175.6,175.58,8.8143]
[1754646321395,3.34595488,175.6,175.56,3.26170216]
[1754646321396,9.03985488,175.6,175.56,3.26170216]
[1754646321601,3.34595488,175.6,175.57,3.12]
[1754646322100,3.31,175.58,175.57,3.12]
[1754646322707,3.31,175.58,175.57,8.8146]
[1754646324007,3.34595488,175.6,175.59,3.12]
[1754646324202,3.34595488,175.6,175.56,3.16383385]
[1754646324402,3.21786831,175.59,175.56,0.04383385]
[1754646324607,9.0046,175.57,175.56,0.04383385]
[1754646326699,3.31,175.57,175.56,3.16383385]
[1754646326906,3.31,175.59,175.56,3.16383385]
[1754646327205,3.31,175.58,175.56,8.85853385]
[1754646327406,3.31,175.58,175.57,3.12]
[1754646327607,3.31,175.58,175.57,2.88898904]
[1754646328711,3.31,175.58,175.57,8.58358904]
[1754646329609,3.31,175.59,175.58,5.6942]
[1754646329804,0.03595488,175.6,175.56,0.04383385]
[1754646330009,3.34595488,175.6,175.59,3.12]
[1754646330602,3.34595488,175.6,175.59,8.814]
[1754646330808,0.03595488,175.6,175.59,8.814]
[1754646332116,0.03595488,175.6,175.59,12.03186831]
[1754646335916,5.488e-05,175.6,175.59,12.03186831]
[1754646341920,5.6917,175.67,175.64,5.6923]
[1754646342216,3.25,175.66,175.64,8.8923]
[1754646342412,3.25,175.66,175.64,5.6923]
[1754646343117,5.6917,175.66,175.64,5.6923]
[1754646343318,3.25,175.65,175.64,5.6923]
[1754646344017,3.25,175.65,175.63,8.95344842]
[1754646344219,3.25,175.65,175.63,3.26084842]
[1754646344608,3.25,175.65,175.63,6.46084842]
[1754646345221,3.25,175.65,175.64,5.6924]
[1754646346022,3.25,175.65,175.63,3.26084842]
[1754646346324,386.33786831,175.71,175.64,3.2]
[1754646346722,3.25,175.7,175.64,3.2]
[1754646347623,3.25,175.67,175.65,5.6918]
[1754646348017,3.25,175.67,175.65,3.2]
[1754646348423,3.25,175.67,175.66,5.6917]
[1754646349020,3.25,175.68,175.66,5.6917]
[1754646349620,3.25,175.67,175.65,5.6919]
[1754646350223,3.25,175.66,175.64,5.6923]
[1754646350425,3.25,175.65,175.64,5.6923]
[1754646350818,3.25,175.65,175.64,8.8923]
[1754646352223,3.25,175.69,175.66,5.6915]
[1754646352527,3.25,175.69,175.66,8.8915]
[1754646353027,3.25,175.68,175.66,5.6915]
[1754646355230,3.25,175.68,175.67,5.6914]
[1754646355432,3.25,175.7,175.67,6.41786831]
[1754646355724,3.25,175.72,175.7,3.2]
[1754646358734,109.9097,175.73,175.69,3.21786831]
[1754646358923,22.32323929,175.79,175.71,3.21786831]
[1754646359124,383.0,175.81,175.73,3.21786831]
[1754646359125,3.25,175.78,175.73,3.21786831]
[1754646359329,3.25,175.79,175.77,3.2]
[1754646359530,5.6877,175.79,175.77,3.2]
[1754646359730,3.25,175.78,175.77,3.2]
[1754646359931,3.25,175.78,175.74,5.72518797]
[1754646360132,3.25,175.77,175.74,3.23628797]
[1754646360329,3.25,175.77,175.74,0.03628797]
[1754646360634,3.25,175.76,175.75,3.2]
[1754646362735,3.25,175.76,175.74,3.23628797]
[1754646362935,3.25,175.76,175.74,0.03628797]
[1754646363336,5.6888,175.75,175.74,0.03628797]
[1754646363533,8.9388,175.75,175.74,0.03628797]
[1754646366542,5.6898,175.72,175.69,8.9407]
[1754646366841,3.12,175.7,175.69,8.9407]
[1754646367240,5.6896,175.73,175.69,8.9407]
[1754646367440,5.6896,175.73,175.7,3.25]
[1754646367632,3.12,175.71,175.7,3.25]
[1754646367837,5.6896,175.73,175.7,3.25]
[1754646368033,3.12,175.75,175.7,3.25]
[1754646368340,3.12,175.75,175.72,3.25]
[1754646368545,5.6893,175.74,175.72,3.25]
[1754646368742,3.12,175.73,175.72,3.25]
[1754646370440,3.12,175.74,175.72,3.25]
[1754646370634,3.12,175.74,175.73,5.6894]
[1754646370842,3.12,175.74,175.7,3.25]
[1754646371243,3.12,175.74,175.72,5.6895]
[1754646371441,104.16,175.76,175.73,3.25]
[1754646371442,107.28,175.76,175.73,3.25]
[1754646371642,8.8081,175.78,175.75,5.6886]
[1754646371840,5.6881,175.78,175.75,5.6886]
[1754646372040,3.12,175.76,175.75,8.9386]
[1754646373641,3.12,175.76,175.74,8.939]
[1754646373844,3.12,175.76,175.72,3.25]
[1754646374439,8.8086,175.76,175.73,8.9393]
[1754646374744,3.12,175.78,175.72,3.25]
[1754646374944,8.808,175.78,175.72,3.25]
[1754646375143,3.12,175.77,175.72,3.25]
[1754646375345,3.12,175.76,175.72,3.25]
[1754646375545,3.12,175.76,175.75,8.9388]
[1754646378645,3.12,175.77,175.76,5.6883]
[1754646379351,3.12,175.77,175.76,8.9383]
[1754646379751,3.12,175.77,175.76,3.25]
[1754646379952,3.12,175.77,175.74,3.25]
[1754646380446,3.21786831,175.77,175.69,6.46786831]
[1754646380652,3.12,175.76,175.7,3.25]
[1754646380858,5.689,175.75,175.7,3.25]
[1754646381048,5.689,175.75,175.71,3.25]
[1754646381246,3.12,175.76,175.7,3.25]
[1754646381647,104.16,175.8,175.74,3.25]
[1754646381648,3.12,175.78,175.74,3.25]
[1754646382050,8.808,175.78,175.75,5.6885]
[1754646382348,3.12,175.76,175.74,3.25]
[1754646382553,3.12,175.78,175.77,5.6881]
[1754646382950,3.12,175.78,175.76,3.25]
[1754646383152,3.12,175.77,175.76,8.9384]
[1754646384252,3.12,175.77,175.76,3.25]
[1754646385456,3.12,175.77,175.76,8.9385]
[1754646385961,3.12,175.77,175.76,3.25]
[1754646387451,3.12,175.76,175.74,5.689]
[1754646387660,3.12,175.76,175.72,3.25]
[1754646388055,3.12,175.78,175.72,3.25]
[1754646388863,5.6883,175.77,175.72,3.25]
[1754646389061,3.12,175.78,175.74,3.25]
[1754646389360,3.12,175.79,175.74,3.25]
[1754646389751,5.6883,175.77,175.75,5.6886]
[1754646389951,3.12,175.76,175.75,8.9386]
[1754646393962,3.12,175.76,175.75,5.6886]
[1754646394566,3.12,175.76,175.75,8.9386]
[1754646395062,8.8085,175.76,175.75,3.25]
[1754646395266,3.12,175.75,175.74,3.25]
[1754646395568,3.12,175.75,175.72,3.25]
[1754646396164,3.02,175.74,175.73,9.0094]
[1754646396466,5.689,175.75,175.73,9.0094]
[1754646396467,3.02,175.79,175.74,3.32]
[1754646396961,3.02,175.78,175.76,3.32]
[1754646397367,3.02,175.78,175.77,9.0081]
[1754646397567,3.02,175.78,175.77,3.32]
[1754646397767,3.02,175.77,175.76,3.32]
[1754646399370,3.02,175.77,175.76,9.0083]
[1754646402173,3.02,175.78,175.75,3.32]
[1754646403168,3.02,175.78,175.77,9.0082]
[1754646403975,104.16,175.8,175.78,5.6877]
[1754646404274,3.02,175.79,175.78,9.0077]
[1754646404672,3.02,175.81,175.78,3.32]
[1754646404971,3.02,175.8,175.78,3.32]
[1754646405168,3.02,175.8,175.79,5.6873]
[1754646405369,3.02,175.81,175.8,3.32]
[1754646405863,3.02,175.81,175.79,5.6873]
[1754646406174,3.02,175.81,175.79,3.32]
[1754646406371,3.02,175.81,175.76,3.32]
[1754646406771,5.6882,175.78,175.75,5.6887]
[1754646406967,3.02,175.77,175.75,5.6887]
[1754646407275,3.21786831,175.8,175.72,3.21786831]
[1754646407472,3.21786831,175.76,175.69,6.53786831]
[1754646407772,3.02,175.75,175.69,3.32]
[1754646407971,3.21786831,175.76,175.69,3.32]
[1754646407972,3.02,175.74,175.69,3.32]
[1754646408173,3.02,175.74,175.69,6.53786831]
[1754646408372,5.6892,175.74,175.72,5.6898]
[1754646408570,3.02,175.73,175.72,9.0098]
[1754646409373,3.02,175.74,175.73,9.0094]
[1754646409680,3.02,175.79,175.74,3.32]
[1754646409878,5.6884,175.77,175.74,5.6889]
[1754646410174,3.02,175.76,175.75,3.32]
[1754646410569,3.02,175.76,175.75,9.0088]
[1754646412075,3.02,175.76,175.75,3.32]
[1754646412272,3.02,175.76,175.74,3.32]
[1754646412473,3.02,175.76,175.72,3.32]
[1754646412673,3.02,175.76,175.71,3.21786831]
[1754646412674,3.02,175.76,175.7,3.32]
[1754646413077,3.02,175.73,175.71,9.0099]
[1754646413272,3.02,175.72,175.71,3.32]
[1754646413472,8.7094,175.74,175.71,3.32]
[1754646413668,3.02,175.73,175.72,3.32]
[1754646414073,5.6895,175.73,175.71,3.32]
[1754646414377,3.02,175.72,175.71,3.32]
[1754646415178,3.02,175.72,175.71,9.0101]
[1754646416478,3.02,175.72,175.7,5.6903]
[1754646416975,3.02,175.72,175.7,9.0103]
[1754646417479,3.02,175.76,175.72,5.6897]
[1754646417678,3.02,175.76,175.72,9.0097]
[1754646418271,5.6893,175.74,175.72,3.32]
[1754646418478,3.02,175.73,175.67,3.21786831]
[1754646418781,3.02,175.73,175.69,3.32]
[1754646418970,5.6901,175.72,175.69,9.0106]
[1754646419175,3.02,175.7,175.69,9.0106]
[1754646419472,3.02,175.72,175.71,3.32]
[1754646420380,3.02,175.72,175.71,9.0101]
[1754646420581,5.6892,175.74,175.71,3.32]
[1754646420781,3.21786831,175.79,175.71,6.53786831]
[1754646420976,3.02,175.78,175.72,9.0096]
[1754646421584,3.02,175.74,175.73,3.32]
[1754646422978,8.7091,175.74,175.72,5.6896]
[1754646423280,3.02,175.72,175.71,9.01]
[1754646424184,8.7093,175.74,175.71,9.01]
[1754646424374,3.02,175.73,175.72,3.32]
[1754646425274,8.7095,175.73,175.72,3.32]
[1754646425484,25.59089916,175.77,175.72,3.32]
[1754646425680,3.02,175.75,175.74,3.32]
[1754646425885,8.7088,175.75,175.74,3.32]
[1754646426080,3.02,175.75,175.73,3.29]
[1754646426987,3.25,175.74,175.73,8.9794]
[1754646427586,8.9391,175.74,175.73,3.29]
[1754646427786,5.6891,175.74,175.72,5.6896]
[1754646428085,3.25,175.73,175.72,8.9796]
[1754646428889,3.25,175.73,175.72,3.29]
[1754646430485,3.25,175.76,175.71,3.29]
[1754646431483,3.25,175.76,175.72,3.29]
[1754646431692,3.25,175.76,175.73,3.29]
[1754646431889,3.25,175.75,175.73,3.29]
[1754646432693,3.25,175.79,175.73,3.29]
[1754646432988,3.25,175.79,175.75,3.29]
[1754646433787,3.25,175.79,175.76,5.6885]
[1754646433788,5.6877,175.79,175.76,5.6885]
[1754646433981,3.25,175.77,175.76,3.29]
[1754646434491,3.25,175.77,175.74,6.50786831]
[1754646434690,8.9383,175.77,175.75,3.29]
[1754646434889,3.25,175.76,175.7,3.21786831]
[1754646435088,3.25,175.76,175.7,6.50786831]
[1754646435292,3.25,175.76,175.7,3.21786831]
[1754646435589,5.689,175.75,175.72,8.9797]
[1754646435790,3.25,175.73,175.72,3.29]
[1754646436883,3.25,175.73,175.69,8.9806]
[1754646437089,3.25,175.73,175.69,3.29]
[1754646438492,3.25,175.71,175.7,3.29]
[1754646439693,3.25,175.72,175.7,3.29]
[1754646439892,3.25,175.72,175.69,8.9806]
[1754646440093,8.9398,175.72,175.69,5.6906]
[1754646440291,3.25,175.74,175.7,6.50786831]
[1754646440593,5.6889,175.75,175.71,3.29]
[1754646440895,8.9389,175.75,175.71,3.29]
[1754646441397,8.9389,175.75,175.73,3.29]
[1754646441695,8.9389,175.75,175.74,3.29]
[1754646442095,3.25,175.75,175.74,3.29]
[1754646443296,8.9388,175.75,175.74,3.29]
[1754646443596,3.25,175.74,175.73,3.29]
[1754646443892,3.25,175.73,175.71,8.98]
[1754646444095,3.25,175.73,175.71,5.69]
[1754646444495,3.25,175.77,175.71,8.98]
[1754646445701,5.6892,175.74,175.71,8.98]
[1754646445902,3.25,175.73,175.71,3.29]
[1754646446102,3.25,175.72,175.71,3.29]
[1754646446604,8.9393,175.74,175.71,3.29]
[1754646447101,3.25,175.74,175.72,5.6896]
[1754646447302,3.25,175.74,175.73,3.29]
[1754646448301,3.25,175.72,175.7,3.29]
[1754646448707,3.25,175.72,175.71,3.29]
[1754646449100,3.25,175.72,175.71,8.9801]
[1754646449298,8.9393,175.74,175.69,3.21786831]
[1754646449502,8.9393,175.74,175.73,3.29]
[1754646450703,3.25,175.74,175.73,3.29]
[1754646451002,8.9391,175.74,175.73,3.29]
[1754646451804,3.25,175.73,175.72,3.29]
[1754646452703,8.9395,175.73,175.72,3.29]
[1754646453008,3.25,175.75,175.68,3.29]
[1754646453408,3.25,175.72,175.71,3.29]
[1754646453701,3.25,175.75,175.71,3.29]
[1754646454006,3.25,175.74,175.73,3.29]
[1754646455109,3.25,175.74,175.73,8.9795]
[1754646455310,3.25,175.74,175.73,3.29]
[1754646455910,8.9391,175.74,175.73,3.29]
[1754646456304,3.25,175.74,175.73,3.29]
[1754646456511,22.37303085,175.79,175.73,3.21786831]
[1754646456711,3.27,175.78,175.74,3.13]
[1754646456907,8.958,175.78,175.75,5.6885]
[1754646457113,8.958,175.78,175.76,3.13]
[1754646457315,3.27,175.77,175.75,5.6885]
[1754646457807,22.37303085,175.8,175.73,3.21786831]
[1754646457808,25.59089916,175.8,175.73,3.21786831]
[1754646458008,3.27,175.75,175.67,3.21786831]
[1754646458306,5.6904,175.7,175.69,3.13]
[1754646458501,3.27,175.69,175.65,6.34786831]
[1754646458707,3.27,175.69,175.67,3.13]
[1754646458904,3.27,175.69,175.68,3.13]
[1754646459108,3.21786831,175.72,175.63,3.21786831]
[1754646459311,3.27,175.68,175.67,3.13]
[1754646459610,25.59089916,175.72,175.67,3.13]
[1754646459913,3.27,175.71,175.68,3.13]
[1754646460216,3.27,175.69,175.68,3.13]
[1754646460513,3.27,175.71,175.69,5.6905]
[1754646460710,3.27,175.71,175.7,3.13]
[1754646462216,8.9602,175.71,175.7,3.13]
[1754646462617,3.27,175.71,175.68,8.821]
[1754646463916,3.21786831,175.72,175.66,3.13]
[1754646464214,3.21786831,175.72,175.67,5.6914]
[1754646464215,5.6908,175.69,175.67,5.6914]
[1754646464410,5.6908,175.69,175.66,3.13]
[1754646464615,3.27,175.67,175.66,3.13]
[1754646465420,3.27,175.69,175.66,3.13]
[1754646466222,3.27,175.69,175.68,5.6911]
[1754646466522,3.27,175.69,175.68,8.8211]
[1754646467022,3.27,175.72,175.65,3.21786831]
[1754646467222,3.27,175.72,175.66,3.13]
[1754646468119,8.9602,175.71,175.68,3.13]
[1754646468512,25.64303085,175.73,175.7,3.13]
[1754646468714,3.27,175.74,175.7,3.13]
[1754646468920,25.59089916,175.78,175.7,3.13]
[1754646469117,3.27,175.73,175.72,3.13]
[1754646469617,3.27,175.73,175.72,8.8198]
[1754646469923,3.27,175.74,175.72,3.13]
[1754646470123,5.6887,175.76,175.73,5.6892]
[1754646470322,3.27,175.75,175.74,3.13]
[1754646471222,3.27,175.75,175.74,8.8191]
[1754646471825,3.27,175.75,175.74,3.13]
[1754646472219,3.27,175.75,175.72,3.13]
[1754646472623,3.27,175.74,175.71,3.21786831]
[1754646472822,3.27,175.74,175.71,6.34786831]
[1754646473226,3.27,175.74,175.69,3.21786831]
[1754646473424,3.27,175.74,175.7,3.13]
[1754646474220,3.27,175.71,175.7,8.8203]
[1754646475822,5.6896,175.73,175.71,5.6901]
[1754646476027,3.27,175.72,175.71,8.8201]
[1754646480024,5.6889,175.75,175.71,3.21786831]
[1754646480227,3.27,175.74,175.72,3.13]
[1754646481933,3.27,175.74,175.72,5.6898]
[1754646482233,3.27,175.74,175.73,3.13]
[1754646482435,3.27,175.76,175.74,3.13]
[1754646482736,3.27,175.76,175.75,8.8186]
[1754646483536,3.27,175.76,175.74,5.689]
[1754646483736,3.27,175.76,175.74,8.819]
[1754646483934,5.6883,175.77,175.74,8.819]
[1754646484136,3.27,175.75,175.74,8.819]
[1754646484437,3.27,175.75,175.74,3.13]
[1754646487529,3.27,175.75,175.73,8.90716831]
[1754646487530,3.04,175.74,175.73,6.49786831]
[1754646487737,3.04,175.74,175.73,3.21786831]
[1754646488038,3.04,175.74,175.73,6.49786831]
[1754646488434,3.04,175.74,175.73,12.18736831]
[1754646490438,3.04,175.74,175.73,6.49786831]
[1754646490741,3.04,175.74,175.73,3.21786831]
[1754646490939,3.04,175.74,175.73,6.49786831]
[1754646491140,3.04,175.74,175.73,12.18736831]
[1754646492343,3.04,175.74,175.73,3.21786831]
[1754646492543,3.04,175.74,175.71,6.49786831]
[1754646492735,3.04,175.74,175.7,8.9702]
[1754646493036,3.04,175.73,175.7,5.6902]
[1754646493230,3.04,175.73,175.71,3.28]
[1754646493527,3.04,175.73,175.7,3.28]
[1754646493933,3.04,175.73,175.68,3.28]
[1754646494129,3.04,175.73,175.67,6.49786831]
[1754646494637,3.04,175.69,175.67,3.21786831]
[1754646495141,3.04,175.69,175.67,6.49786831]
[1754646495644,5.6909,175.69,175.67,6.49786831]
[1754646495845,3.04,175.68,175.67,6.49786831]
[1754646496346,3.04,175.68,175.67,12.18926831]
[1754646497043,3.04,175.68,175.67,6.49786831]
[1754646497435,3.04,175.69,175.68,3.28]
[1754646497641,3.04,175.69,175.67,3.21786831]
[1754646497842,3.04,175.69,175.67,6.49786831]
[1754646498045,3.04,175.68,175.67,6.49786831]
[1754646498336,3.04,175.69,175.68,3.28]
[1754646498537,3.04,175.7,175.69,3.28]
[1754646499946,3.04,175.75,175.69,6.49786831]
[1754646500246,3.04,175.75,175.7,3.28]
[1754646500646,3.04,175.75,175.71,3.28]
[1754646500841,5.6897,175.73,175.71,3.28]
[1754646501141,3.04,175.72,175.71,3.28]
[1754646502844,8.7298,175.72,175.71,3.28]
[1754646503048,3.04,175.71,175.69,6.49786831]
[1754646503443,3.21786831,175.76,175.69,6.49786831]
[1754646503639,3.04,175.7,175.69,6.49786831]
[1754646504048,3.04,175.7,175.69,3.21786831]
[1754646504548,3.04,175.7,175.69,6.49786831]
[1754646506255,8.7299,175.72,175.69,8.90856831]
[1754646506546,5.6899,175.72,175.7,3.28]
[1754646506743,3.04,175.71,175.7,3.28]
[1754646508148,8.7301,175.71,175.69,3.21786831]
[1754646508347,3.04,175.7,175.69,6.49786831]
[1754646509253,3.04,175.7,175.69,3.21786831]
[1754646509846,3.04,175.69,175.67,3.21786831]
[1754646510447,3.04,175.73,175.65,6.49786831]
[1754646510647,3.04,175.73,175.66,3.28]
[1754646510848,5.6907,175.7,175.66,3.28]
[1754646511052,3.04,175.68,175.67,3.28]